{"text_format":"3","workbook":"xlsx","n_sheets":4,"sheets":["Budformular","Diagramdata","Opdeling af omkostninger","Oversigt over budomkostninger"],"not_rendered":{"charts":1,"images":2,"defined_names":11},"read":"whole","date_system":"1900"}

{"sheet":"Budformular","index":0,"n_rows":21,"n_cols":6,"rows_kept":21,"merged":[[0,1,0,4],[1,1,1,2],[7,1,8,1],[7,2,8,2],[10,1,10,5],[12,1,12,5],[14,1,14,5],[15,1,15,2],[15,4,15,5],[16,1,16,2],[16,4,16,5],[18,1,18,5],[19,1,19,2],[19,4,19,5],[20,1,20,2],[20,4,20,5]]}
[null,"Tilbudsformular til konstruktion"]
[null,"Ejeroplysninger",null,null,"Leverandøroplysninger"]
[null,"Navn","Angiv Ejerens navn i denne celle",null,"Firma","Angiv leverandørens firmanavn i denne celle"]
[null,"Adresse","Angiv ejers adresse i denne celle",null,"Navn","Angiv navn på leverandøren i denne celle"]
[null,"By, postnummer","Angiv ejers postnummer og by i denne celle",null,"Adresse","Angiv leverandørens adresse i denne celle"]
[null,"Telefon","Angiv ejers telefonnummer i denne celle",null,"By, postnummer","Angiv leverandørens postnummer og by i denne celle"]
[null,"Mail","Angiv ejers mailadresse i denne celle",null,"Telefon","Angiv leverandørens telefonnummer i denne celle"]
[null,"Projektnavn","Angiv projektnavn i denne celle",null,"Mail","Angiv leverandørens mailadresse i denne celle "]
[{"$nulls":4},"Fuldførelsesdato","Angiv fuldførelsesdato i denne celle"]
[null,"Arbejdsområde"]
[null,"Projektomfanget indsættes her. Skriv alle de specifikationer, du ønsker. \n\nEksempeltekst: Dette bliver et modelprojekt, hvor der bygges en stor trappe. Vi bruger kun 2x4- og 2x8-bjælker samt bjælkebeslag til at konstruere rammen. Trappen skæres ud fra 2x4-materialet. Der ville kun blive brugt 2\"-skruer.  Der ville kun blive brugt søm på 7,6 cm (10 penny). Designvægten skal kunne bære mindst 250 kg (500 pund) pr. trin. Trinnene vil være på samme niveau som husets. Et trin fastgøres til huset. Leverandøren sørger for oprydning."]
[null,"Ikke inkluderet"]
[null,"Projektdetaljer, der ikke er inkluderet, indsættes her. Skriv alt det, der ikke er inkluderet i dette tilbud. \n\nEksempeltekst: Der installeres intet gelænder. Ejeren skal klargøre grunden. Ejeren skal male trappen."]
[null,"Firmatilbud"]
[null,"Firmatilbud indsættes her. Skriv en oversigt over tilbudet, herunder hvem der tilbyder arbejdet, den forventede fuldførelsesdato og tilbudsprisen for forslaget.\n\nEksempeltekst: Vi, Firmanavn, tilbyder ovenstående arbejdsomfang, der skal udføres inden fuldførelsesdatoen for det samlede beløb."]
[]
[null,"Indsendt af (Virksomhedsrepræsentant)",null,null,"Dato"]
[null,"Ejeraccept"]
[null,"Ejeraccept indsættes her. Skriv ejerens navn i en bekræftelsesopgørelse, der indeholder fuldførelsesdatoen og det samlede beløb, der er angivet i firmaforslaget. \n\nEksempeltekst: Jeg, Ejers Navn, accepterer ovenstående omfang af arbejde, tilbudt til fuldførelse på fuldførelsesdatoen til det samlede beløb."]
[]
[null,"Afgivet af (husejer eller autoriseret repræsentant)",null,null,"Dato"]

{"sheet":"Diagramdata","index":1,"n_rows":7,"n_cols":3,"rows_kept":7,"hidden":true}
[]
[null,null,"I alt"]
[null,{"$f":"INDEX(BidItems[#Data],MATCH(1,BidItems[Rangerede omkostninger],0),2)","v":"Udgift til arbejdsmænd"},{"$f":"INDEX(BidItems[#Data],MATCH(1,BidItems[Rangerede omkostninger],0),4)","v":200}]
[null,{"$f":"INDEX(BidItems[#Data],MATCH(2,BidItems[Rangerede omkostninger],0),2)","v":"2x4x10-bjælker"},{"$f":"INDEX(BidItems[#Data],MATCH(2,BidItems[Rangerede omkostninger],0),4)","v":99.39999999999999}]
[null,{"$f":"INDEX(BidItems[#Data],MATCH(3,BidItems[Rangerede omkostninger],0),2)","v":"Bjælkebeslag"},{"$f":"INDEX(BidItems[#Data],MATCH(3,BidItems[Rangerede omkostninger],0),4)","v":74.7}]
[null,{"$f":"INDEX(BidItems[#Data],MATCH(4,BidItems[Rangerede omkostninger],0),2)","v":"2x8x10-bjælker"},{"$f":"INDEX(BidItems[#Data],MATCH(4,BidItems[Rangerede omkostninger],0),4)","v":33.75}]
[null,{"$f":"INDEX(BidItems[#Data],MATCH(5,BidItems[Rangerede omkostninger],0),2)","v":"Læderhandsker"},{"$f":"INDEX(BidItems[#Data],MATCH(5,BidItems[Rangerede omkostninger],0),4)","v":15.5}]

{"sheet":"Opdeling af omkostninger","index":2,"n_rows":14,"n_cols":6,"rows_kept":14,"merged":[[0,1,0,4],[1,1,1,4]]}
[null,"Opdeling af omkostninger",{"$nulls":3}," "]
[null,"Liste over materialer og omkostninger"]
[null,"Antal","Beskrivelse","Udgift","Total","Rangerede omkostninger"]
[null,5,"2x8x10-bjælker",{"v":6.75,"d":"6.75 kr."},{"$f":"IFERROR(BidItems[[#This Row],[Udgift]]*BidItems[[#This Row],[Antal]], \"\")","v":{"v":33.75,"d":"33.75 kr."}},{"$f":"_xlfn.RANK.EQ(BidItems[[#This Row],[Total]],BidItems[Total])","v":4}]
[null,20,"2x4x10-bjælker",{"v":4.97,"d":"4.97 kr."},{"$f":"IFERROR(BidItems[[#This Row],[Udgift]]*BidItems[[#This Row],[Antal]], \"\")","v":{"v":99.39999999999999,"d":"99.40 kr."}},{"$f":"_xlfn.RANK.EQ(BidItems[[#This Row],[Total]],BidItems[Total])","v":2}]
[null,30,"Bjælkebeslag",{"v":2.49,"d":"2.49 kr."},{"$f":"IFERROR(BidItems[[#This Row],[Udgift]]*BidItems[[#This Row],[Antal]], \"\")","v":{"v":74.7,"d":"74.70 kr."}},{"$f":"_xlfn.RANK.EQ(BidItems[[#This Row],[Total]],BidItems[Total])","v":3}]
[null,2,"Æske med skruer, 2 tommer",{"v":6.67,"d":"6.67 kr."},{"$f":"IFERROR(BidItems[[#This Row],[Udgift]]*BidItems[[#This Row],[Antal]], \"\")","v":{"v":13.34,"d":"13.34 kr."}},{"$f":"_xlfn.RANK.EQ(BidItems[[#This Row],[Total]],BidItems[Total])","v":6}]
[null,2,"Æske med søm, 7,6 cm (10 penny)",{"v":3.25,"d":"3.25 kr."},{"$f":"IFERROR(BidItems[[#This Row],[Udgift]]*BidItems[[#This Row],[Antal]], \"\")","v":{"v":6.5,"d":"6.50 kr."}},{"$f":"_xlfn.RANK.EQ(BidItems[[#This Row],[Total]],BidItems[Total])","v":7}]
[null,2,"Læderhandsker",{"v":7.75,"d":"7.75 kr."},{"$f":"IFERROR(BidItems[[#This Row],[Udgift]]*BidItems[[#This Row],[Antal]], \"\")","v":{"v":15.5,"d":"15.50 kr."}},{"$f":"_xlfn.RANK.EQ(BidItems[[#This Row],[Total]],BidItems[Total])","v":5}]
[null,2,"Udgift til arbejdsmænd",{"v":100,"d":"100.00 kr."},{"$f":"IFERROR(BidItems[[#This Row],[Udgift]]*BidItems[[#This Row],[Antal]], \"\")","v":{"v":200,"d":"200.00 kr."}},{"$f":"_xlfn.RANK.EQ(BidItems[[#This Row],[Total]],BidItems[Total])","v":1}]
[4,null,null,"Subtotal",{"$f":"SUBTOTAL(109,BidItems[Total])","v":{"v":443.18999999999994,"d":"443.19 kr."}}]
[5,null,null,"Momssats",{"v":0.075,"d":"7.50%"}]
[{"$nulls":3},"Moms",{"$f":"IFERROR(Skattesats*BidItems[[#Totals],[Total]], \"\")","v":{"v":33.23924999999999,"d":"33.24 kr."}}]
[{"$nulls":3},"Samlede udgifter",{"$f":"IFERROR(Skat+BidItems[[#Totals],[Total]], \"\")","v":{"v":476.4292499999999,"d":"476.43 kr."}}]

{"sheet":"Oversigt over budomkostninger","index":3,"n_rows":3,"n_cols":4,"rows_kept":3}
[null,"Oversigt over budomkostninger"]
[null,"Opdeling af materialer og omkostninger",null,"Noter"]
[null,"Cirkeldiagram, der viser de fem største udgifter pr. materiale. Data er baseret på tabellen Tilbudets elementer i regnearket Udgiftsopdeling",null,"Angiv noter i denne celle."]